[Event "Late-Titled-Tuesday-Blitz-March-05-2024"]
[Site "Chess.com"]
[Date "2024.03.05"]
[Round "11"]
[White "HansOnTwitch"]
[Black "Sokoloco"]
[Result "1-0"]
[WhiteElo "3099"]
[BlackElo "2802"]
[TimeControl "180+1"]
[EndTime "16:01:34 PST"]
[Termination "HansOnTwitch won by resignation"]

1. e4 {[%clk 0:03:00.9]} 1... d6 {[%clk 0:03:00.4]} 2. d4 {[%clk 0:03:01]} 2...
g6 {[%clk 0:03:01.2]} 3. Nc3 {[%clk 0:03:01]} 3... Bg7 {[%clk 0:03:01.9]} 4. Be3
{[%clk 0:03:01.6]} 4... a6 {[%clk 0:03:01.8]} 5. Qd2 {[%clk 0:02:59]} 5... b5
{[%clk 0:03:02.1]} 6. f3 {[%clk 0:02:59]} 6... Bb7 {[%clk 0:03:02.4]} 7. h4
{[%clk 0:02:59.4]} 7... h6 {[%clk 0:03:01.5]} 8. Nh3 {[%clk 0:02:53.3]} 8... Nd7
{[%clk 0:02:59.1]} 9. Ne2 {[%clk 0:02:51.3]} 9... c5 {[%clk 0:02:55]} 10. c3
{[%clk 0:02:51.8]} 10... Rc8 {[%clk 0:02:53.1]} 11. Nf2 {[%clk 0:02:51.2]} 11...
e6 {[%clk 0:02:45.1]} 12. h5 {[%clk 0:02:51.1]} 12... g5 {[%clk 0:02:45]} 13.
Ng3 {[%clk 0:02:50.3]} 13... cxd4 {[%clk 0:02:39.5]} 14. cxd4 {[%clk 0:02:50.2]}
14... Ne7 {[%clk 0:02:32.6]} 15. Bd3 {[%clk 0:02:49.9]} 15... O-O {[%clk
0:02:25.2]} 16. Ng4 {[%clk 0:02:42.7]} 16... Nc6 {[%clk 0:02:05.2]} 17. Bb1
{[%clk 0:02:34.6]} 17... Nf6 {[%clk 0:01:52.9]} 18. Nxf6+ {[%clk 0:02:33.6]}
18... Qxf6 {[%clk 0:01:51.9]} 19. Ne2 {[%clk 0:02:34.1]} 19... Qd8 {[%clk
0:01:24.4]} 20. O-O {[%clk 0:02:31.9]} 20... Qa5 {[%clk 0:01:24.8]} 21. Qxa5
{[%clk 0:02:21.8]} 21... Nxa5 {[%clk 0:01:25.7]} 22. b3 {[%clk 0:02:21.6]} 22...
Nc6 {[%clk 0:01:24.4]} 23. Rd1 {[%clk 0:02:13.3]} 23... Rc7 {[%clk 0:01:11.3]}
24. a3 {[%clk 0:02:12.7]} 24... Na5 {[%clk 0:01:08.7]} 25. Nc1 {[%clk
0:02:10.4]} 25... Rfc8 {[%clk 0:01:05.5]} 26. Bd3 {[%clk 0:02:09.4]} 26... Rc3
{[%clk 0:00:57.3]} 27. Rb1 {[%clk 0:02:09.2]} 27... R3c7 {[%clk 0:00:26.2]} 28.
Ne2 {[%clk 0:02:08.1]} 28... d5 {[%clk 0:00:19]} 29. e5 {[%clk 0:02:07.5]} 29...
f6 {[%clk 0:00:19.7]} 30. f4 {[%clk 0:02:04.7]} 30... fxe5 {[%clk 0:00:19.2]}
31. fxe5 {[%clk 0:02:03.6]} 31... Rf8 {[%clk 0:00:14.1]} 32. Bd2 {[%clk
0:02:01.8]} 32... Nc6 {[%clk 0:00:13.8]} 33. Rdc1 {[%clk 0:02:02.5]} 33... Rfc8
{[%clk 0:00:12.1]} 34. a4 {[%clk 0:02:01.6]} 34... Na7 {[%clk 0:00:07.1]} 35.
Rxc7 {[%clk 0:02:00.7]} 35... Rxc7 {[%clk 0:00:08]} 36. Ba5 {[%clk 0:02:00.3]}
36... Rc6 {[%clk 0:00:08.1]} 37. Bb4 {[%clk 0:01:58.8]} 37... Bf8 {[%clk
0:00:08]} 38. Bxf8 {[%clk 0:01:57.5]} 38... Kxf8 {[%clk 0:00:08.9]} 39. Rf1+
{[%clk 0:01:57.5]} 39... Kg7 {[%clk 0:00:09.7]} 40. Rf6 {[%clk 0:01:57.9]} 40...
bxa4 {[%clk 0:00:05.9]} 41. bxa4 {[%clk 0:01:57.5]} 41... Rb6 {[%clk 0:00:02]}
42. Rg6+ {[%clk 0:01:57.8]} 42... Kf7 {[%clk 0:00:02.2]} 43. Rxh6 {[%clk
0:01:58.5]} 43... Rb2 {[%clk 0:00:02.1]} 44. Rh7+ {[%clk 0:01:58.1]} 44... Kg8
{[%clk 0:00:02.5]} 45. h6 {[%clk 0:01:58.8]} 45... Nc6 {[%clk 0:00:03]} 46. Rg7+
{[%clk 0:01:59.7]} 46... Kh8 {[%clk 0:00:02.8]} 47. Rc7 {[%clk 0:01:58.5]} 47...
Nb4 {[%clk 0:00:02.5]} 48. Bg6 {[%clk 0:01:57]} 48... Rxe2 {[%clk 0:00:02.1]}
49. Rxb7 {[%clk 0:01:57.1]} 49... Nc6 {[%clk 0:00:02.8]} 50. Rc7 {[%clk
0:01:57.7]} 50... Na7 {[%clk 0:00:02.6]} 51. Rxa7 {[%clk 0:01:57.6]} 1-0

[Event "Late-Titled-Tuesday-Blitz-March-05-2024"]
[Site "Chess.com"]
[Date "2024.03.05"]
[Round "11"]
[White "Abduzhaparov"]
[Black "OPQRC"]
[Result "1/2-1/2"]
[WhiteElo "2472"]
[BlackElo "2575"]
[TimeControl "180+1"]
[EndTime "16:01:43 PST"]
[Termination "Game drawn by repetition"]

1. Nf3 {[%clk 0:02:57.3]} 1... g6 {[%clk 0:03:00.9]} 2. h4 {[%clk 0:02:56.3]}
2... Bg7 {[%clk 0:03:01.8]} 3. h5 {[%clk 0:02:56.6]} 3... h6 {[%clk 0:03:00.4]}
4. hxg6 {[%clk 0:02:55.9]} 4... fxg6 {[%clk 0:03:00.5]} 5. Nh4 {[%clk
0:02:52.9]} 5... Kf7 {[%clk 0:02:57.3]} 6. c3 {[%clk 0:02:53.2]} 6... e5 {[%clk
0:02:53.1]} 7. Qc2 {[%clk 0:02:47.9]} 7... Qf6 {[%clk 0:02:48.8]} 8. e3 {[%clk
0:02:47.1]} 8... d5 {[%clk 0:02:46.4]} 9. g3 {[%clk 0:02:37.1]} 9... Ne7 {[%clk
0:02:44.4]} 10. Be2 {[%clk 0:02:37.2]} 10... Rf8 {[%clk 0:02:38.1]} 11. d4
{[%clk 0:02:36.8]} 11... e4 {[%clk 0:02:36.9]} 12. c4 {[%clk 0:02:35.1]} 12...
Kg8 {[%clk 0:02:33.7]} 13. Rf1 {[%clk 0:02:32.3]} 13... Bh3 {[%clk 0:02:26.1]}
14. f4 {[%clk 0:02:27.3]} 14... Bxf1 {[%clk 0:02:21.3]} 15. Bxf1 {[%clk
0:02:28.2]} 15... c6 {[%clk 0:02:09.8]} 16. Nc3 {[%clk 0:02:25]} 16... Kh7
{[%clk 0:02:07.3]} 17. Bd2 {[%clk 0:02:24.5]} 17... Nd7 {[%clk 0:02:05.8]} 18.
O-O-O {[%clk 0:02:23.9]} 18... Nb6 {[%clk 0:01:54.8]} 19. c5 {[%clk 0:02:21.3]}
19... Nd7 {[%clk 0:01:52.9]} 20. Be1 {[%clk 0:02:19.9]} 20... b6 {[%clk
0:01:49.3]} 21. g4 {[%clk 0:02:13.9]} 21... bxc5 {[%clk 0:01:49]} 22. dxc5
{[%clk 0:02:14.6]} 22... Nxc5 {[%clk 0:01:43.2]} 23. Qh2 {[%clk 0:02:09.9]}
23... g5 {[%clk 0:01:26.5]} 24. Nf5 {[%clk 0:02:02.7]} 24... Nxf5 {[%clk
0:01:24.4]} 25. gxf5 {[%clk 0:02:03.6]} 25... Qxf5 {[%clk 0:01:18.8]} 26. Bh3
{[%clk 0:01:59.8]} 26... g4 {[%clk 0:01:18]} 27. Bf1 {[%clk 0:01:56.6]} 27...
Rab8 {[%clk 0:01:14]} 28. Qc2 {[%clk 0:01:39]} 28... Rb7 {[%clk 0:01:07.8]} 29.
b3 {[%clk 0:01:33.4]} 29... Rfb8 {[%clk 0:01:04.7]} 30. Ne2 {[%clk 0:01:31.7]}
30... Nd3+ {[%clk 0:00:46.4]} 31. Kb1 {[%clk 0:01:31.9]} 31... Nxe1 {[%clk
0:00:37.6]} 32. Rxe1 {[%clk 0:01:32.8]} 32... Qf6 {[%clk 0:00:37.7]} 33. Nd4
{[%clk 0:01:30.1]} 33... c5 {[%clk 0:00:37]} 34. Qxc5 {[%clk 0:01:28.5]} 34...
a5 {[%clk 0:00:24.9]} 35. Qxd5 {[%clk 0:01:27.5]} 35... a4 {[%clk 0:00:23.4]}
36. Qxe4+ {[%clk 0:01:26.8]} 36... Kh8 {[%clk 0:00:21.7]} 37. Bd3 {[%clk
0:01:24.3]} 37... Kg8 {[%clk 0:00:17.9]} 38. Bc4+ {[%clk 0:01:21.8]} 38... Kh8
{[%clk 0:00:16.6]} 39. Bd3 {[%clk 0:01:15.1]} 39... Kg8 {[%clk 0:00:16.2]} 40.
Bc4+ {[%clk 0:01:12.7]} 40... Kh8 {[%clk 0:00:16.4]} 41. Bd3 {[%clk 0:01:12.5]}
1/2-1/2

[Event "Late-Titled-Tuesday-Blitz-March-05-2024"]
[Site "Chess.com"]
[Date "2024.03.05"]
[Round "11"]
[White "IlanSchnaider"]
[Black "Inepton_Fermion"]
[Result "1-0"]
[WhiteElo "2619"]
[BlackElo "2459"]
[TimeControl "180+1"]
[EndTime "16:01:44 PST"]
[Termination "IlanSchnaider won by checkmate"]

1. e4 {[%clk 0:03:00.9]} 1... c5 {[%clk 0:02:10.9]} 2. Nf3 {[%clk 0:03:00.6]}
2... e6 {[%clk 0:02:10.7]} 3. d4 {[%clk 0:03:00.4]} 3... cxd4 {[%clk 0:02:11.6]}
4. Nxd4 {[%clk 0:03:00.7]} 4... Nc6 {[%clk 0:02:12.2]} 5. Bf4 {[%clk 0:03:01]}
5... Qb6 {[%clk 0:01:56]} 6. Nb3 {[%clk 0:02:53.8]} 6... a6 {[%clk 0:01:44.8]}
7. Bd3 {[%clk 0:02:52.1]} 7... Nf6 {[%clk 0:01:43.7]} 8. O-O {[%clk 0:02:51.8]}
8... d6 {[%clk 0:01:38]} 9. c4 {[%clk 0:02:49.2]} 9... Be7 {[%clk 0:01:37.6]}
10. Bc2 {[%clk 0:02:46.6]} 10... O-O {[%clk 0:01:29.1]} 11. Nc3 {[%clk
0:02:42.6]} 11... Rd8 {[%clk 0:01:27.5]} 12. a3 {[%clk 0:02:36]} 12... Ne5
{[%clk 0:01:15.9]} 13. Qe2 {[%clk 0:02:34.7]} 13... Qc7 {[%clk 0:01:13.5]} 14.
Nd2 {[%clk 0:02:31.3]} 14... b5 {[%clk 0:01:06.9]} 15. cxb5 {[%clk 0:02:24.9]}
15... axb5 {[%clk 0:01:07.8]} 16. Rfc1 {[%clk 0:02:01.1]} 16... Ba6 {[%clk
0:01:00.7]} 17. Qe3 {[%clk 0:02:00.9]} 17... Nc4 {[%clk 0:00:45.3]} 18. Nxc4
{[%clk 0:02:00.8]} 18... bxc4 {[%clk 0:00:46.2]} 19. e5 {[%clk 0:01:58.1]} 19...
dxe5 {[%clk 0:00:29]} 20. Bxe5 {[%clk 0:01:59]} 20... Qc5 {[%clk 0:00:29.4]} 21.
Qf4 {[%clk 0:01:27.5]} 21... Nh5 {[%clk 0:00:18.5]} 22. Qe4 {[%clk 0:01:26.2]}
22... f5 {[%clk 0:00:15.6]} 23. Qe2 {[%clk 0:01:26.3]} 23... Nf6 {[%clk
0:00:12.4]} 24. Bxf6 {[%clk 0:01:25.6]} 24... Bxf6 {[%clk 0:00:12.6]} 25. Qxe6+
{[%clk 0:01:26.3]} 25... Kh8 {[%clk 0:00:13.1]} 26. Re1 {[%clk 0:01:20.6]} 26...
h6 {[%clk 0:00:07.2]} 27. Bxf5 {[%clk 0:01:10.3]} 27... Rd2 {[%clk 0:00:04.8]}
28. Ne4 {[%clk 0:01:03.8]} 28... Qd5 {[%clk 0:00:01.6]} 29. Nxd2 {[%clk
0:01:02.6]} 29... Qxd2 {[%clk 0:00:01.6]} 30. Qe8+ {[%clk 0:01:02.6]} 30... Rxe8
{[%clk 0:00:01.4]} 31. Rxe8# {[%clk 0:01:03.5]} 1-0

[Event "Late-Titled-Tuesday-Blitz-March-05-2024"]
[Site "Chess.com"]
[Date "2024.03.05"]
[Round "11"]
[White "Njal28"]
[Black "TanitoluwaAps116"]
[Result "1-0"]
[WhiteElo "3012"]
[BlackElo "2851"]
[TimeControl "180+1"]
[EndTime "16:01:49 PST"]
[Termination "Njal28 won on time"]

1. e4 {[%clk 0:03:00.9]} 1... c5 {[%clk 0:02:59.7]} 2. Nf3 {[%clk 0:03:01.2]}
2... e6 {[%clk 0:02:59.5]} 3. d4 {[%clk 0:03:00.9]} 3... cxd4 {[%clk 0:03:00.4]}
4. Nxd4 {[%clk 0:03:01.4]} 4... Nf6 {[%clk 0:03:01.1]} 5. Nc3 {[%clk 0:03:01.2]}
5... Nc6 {[%clk 0:03:01.7]} 6. Be2 {[%clk 0:03:00.4]} 6... d5 {[%clk 0:02:56]}
7. exd5 {[%clk 0:03:01.3]} 7... exd5 {[%clk 0:02:56.2]} 8. a3 {[%clk 0:03:01.5]}
8... Bd6 {[%clk 0:02:42.5]} 9. Be3 {[%clk 0:02:59]} 9... O-O {[%clk 0:02:42.4]}
10. Qd2 {[%clk 0:02:59.4]} 10... Re8 {[%clk 0:02:30.3]} 11. O-O-O {[%clk
0:02:59]} 11... Be6 {[%clk 0:02:12]} 12. f3 {[%clk 0:02:54.4]} 12... Rc8 {[%clk
0:02:11.3]} 13. g4 {[%clk 0:02:53.2]} 13... Ne5 {[%clk 0:02:01.9]} 14. g5 {[%clk
0:02:49.6]} 14... Nfd7 {[%clk 0:01:45.5]} 15. f4 {[%clk 0:02:47.6]} 15... Nc6
{[%clk 0:01:28]} 16. Nxe6 {[%clk 0:02:13.6]} 16... fxe6 {[%clk 0:00:54.1]} 17.
f5 {[%clk 0:02:11.3]} 17... Nde5 {[%clk 0:00:19.8]} 18. fxe6 {[%clk 0:02:09]}
18... d4 {[%clk 0:00:18]} 19. Bxd4 {[%clk 0:02:06.5]} 19... Nxd4 {[%clk
0:00:18.4]} 20. Qxd4 {[%clk 0:02:07.4]} 20... Qxg5+ {[%clk 0:00:16.1]} 21. Kb1
{[%clk 0:02:07.3]} 21... Bc5 {[%clk 0:00:10.3]} 22. Qe4 {[%clk 0:01:56.1]} 22...
Bxa3 {[%clk 0:00:04.8]} 23. Rhg1 {[%clk 0:01:44]} 23... Qf6 {[%clk 0:00:04.8]}
24. Nd5 {[%clk 0:01:42]} 24... Qxe6 {[%clk 0:00:05]} 25. bxa3 {[%clk 0:01:42.3]}
25... Kh8 {[%clk 0:00:04.3]} 26. Rg3 {[%clk 0:01:35]} 26... Qd6 {[%clk
0:00:04.1]} 27. Rh3 {[%clk 0:01:26.1]} 27... Ng6 {[%clk 0:00:04.4]} 28. Qg4
{[%clk 0:01:26]} 28... Rc5 {[%clk 0:00:03.3]} 29. Nb4 {[%clk 0:01:09.3]} 29...
Qb6 {[%clk 0:00:03.5]} 30. Bd3 {[%clk 0:01:08.3]} 30... Nf8 {[%clk 0:00:04.1]}
31. Rf1 {[%clk 0:01:07.4]} 31... h6 {[%clk 0:00:01.9]} 32. Rg3 {[%clk
0:01:02.7]} 32... g5 {[%clk 0:00:01.2]} 33. Qh5 {[%clk 0:01:00.9]} 1-0

[Event "Late-Titled-Tuesday-Blitz-March-05-2024"]
[Site "Chess.com"]
[Date "2024.03.05"]
[Round "11"]
[White "Szparu"]
[Black "Fh2411"]
[Result "1/2-1/2"]
[WhiteElo "2780"]
[BlackElo "2648"]
[TimeControl "180+1"]
[EndTime "16:01:57 PST"]
[Termination "Game drawn by repetition"]

1. e4 {[%clk 0:03:00.9]} 1... c6 {[%clk 0:02:59.8]} 2. d4 {[%clk 0:03:00.9]}
2... d5 {[%clk 0:03:00.5]} 3. f3 {[%clk 0:03:01.5]} 3... e6 {[%clk 0:02:55.4]}
4. Nc3 {[%clk 0:03:00.2]} 4... Nf6 {[%clk 0:02:50.2]} 5. e5 {[%clk 0:02:57.4]}
5... Nfd7 {[%clk 0:02:50.4]} 6. f4 {[%clk 0:02:57.4]} 6... c5 {[%clk 0:02:45.5]}
7. Nf3 {[%clk 0:02:57.6]} 7... Nc6 {[%clk 0:02:46.2]} 8. Be3 {[%clk 0:02:57.7]}
8... a6 {[%clk 0:02:45.9]} 9. Ne2 {[%clk 0:02:53.2]} 9... b5 {[%clk 0:02:35]}
10. h4 {[%clk 0:02:53]} 10... b4 {[%clk 0:02:16.6]} 11. h5 {[%clk 0:02:52.9]}
11... h6 {[%clk 0:02:15.6]} 12. g4 {[%clk 0:02:52.8]} 12... cxd4 {[%clk
0:01:23.5]} 13. Nexd4 {[%clk 0:02:51.8]} 13... Nxd4 {[%clk 0:01:21.1]} 14. Bxd4
{[%clk 0:02:47.1]} 14... Qc7 {[%clk 0:01:21.6]} 15. Bd3 {[%clk 0:02:46.6]} 15...
Nc5 {[%clk 0:01:21.2]} 16. Bxc5 {[%clk 0:02:46.8]} 16... Bxc5 {[%clk 0:01:20.1]}
17. Qe2 {[%clk 0:02:44.5]} 17... Bb7 {[%clk 0:01:04.9]} 18. O-O-O {[%clk
0:02:40.2]} 18... a5 {[%clk 0:01:04]} 19. Bb5+ {[%clk 0:02:39.5]} 19... Bc6
{[%clk 0:01:02.3]} 20. f5 {[%clk 0:02:37.3]} 20... O-O-O {[%clk 0:00:51.5]} 21.
Rh3 {[%clk 0:02:26.9]} 21... Qb6 {[%clk 0:00:46.6]} 22. Bxc6 {[%clk 0:02:26.6]}
22... Qxc6 {[%clk 0:00:47.5]} 23. Nd4 {[%clk 0:02:26.9]} 23... Qb6 {[%clk
0:00:46.6]} 24. Rhd3 {[%clk 0:02:26.4]} 24... Kb7 {[%clk 0:00:45.6]} 25. fxe6
{[%clk 0:02:16.7]} 25... fxe6 {[%clk 0:00:46.5]} 26. a4 {[%clk 0:02:14.7]} 26...
Bxd4 {[%clk 0:00:45.5]} 27. Rxd4 {[%clk 0:02:15]} 27... Rc8 {[%clk 0:00:46.2]}
28. b3 {[%clk 0:02:10.2]} 28... Rc7 {[%clk 0:00:46.3]} 29. Kb2 {[%clk
0:02:10.3]} 29... Rhc8 {[%clk 0:00:46.8]} 30. R1d2 {[%clk 0:02:10.9]} 30...
Rxc2+ {[%clk 0:00:45.9]} 31. Rxc2 {[%clk 0:02:09]} 31... Qxd4+ {[%clk
0:00:46.6]} 32. Ka2 {[%clk 0:02:06]} 32... Rxc2+ {[%clk 0:00:41.7]} 33. Qxc2
{[%clk 0:02:05.5]} 33... Qxe5 {[%clk 0:00:40.6]} 34. Qd3 {[%clk 0:02:02.3]}
34... d4 {[%clk 0:00:37]} 35. Qf3+ {[%clk 0:02:01.2]} 35... Kb6 {[%clk
0:00:34.5]} 36. Qf8 {[%clk 0:01:56.9]} 36... Qe2+ {[%clk 0:00:23.4]} 37. Ka1
{[%clk 0:01:56.9]} 37... Qd1+ {[%clk 0:00:23.3]} 38. Kb2 {[%clk 0:01:56.9]}
38... Qd2+ {[%clk 0:00:23.1]} 39. Ka1 {[%clk 0:01:57.2]} 39... Qc3+ {[%clk
0:00:22.3]} 40. Ka2 {[%clk 0:01:57.5]} 40... d3 {[%clk 0:00:21.1]} 41. Qd6+
{[%clk 0:01:57.8]} 41... Qc6 {[%clk 0:00:15.2]} 42. Qxd3 {[%clk 0:01:57.4]}
42... Qg2+ {[%clk 0:00:11.5]} 43. Ka1 {[%clk 0:01:57.8]} 43... Qd5 {[%clk
0:00:09.7]} 44. Qe3+ {[%clk 0:01:56.7]} 44... Kc6 {[%clk 0:00:10.3]} 45. Qc1+
{[%clk 0:01:51.4]} 45... Kd6 {[%clk 0:00:09.7]} 46. Qc2 {[%clk 0:01:47.7]} 46...
Qd4+ {[%clk 0:00:08.7]} 47. Ka2 {[%clk 0:01:48.1]} 47... Qxg4 {[%clk 0:00:06.3]}
48. Qd3+ {[%clk 0:01:48.7]} 48... Ke7 {[%clk 0:00:05.5]} 49. Qb5 {[%clk
0:01:49.3]} 49... Qg2+ {[%clk 0:00:05.5]} 50. Ka1 {[%clk 0:01:49.3]} 50... Qd5
{[%clk 0:00:06.4]} 51. Qe2 {[%clk 0:01:47.9]} 51... Qxb3 {[%clk 0:00:05.7]} 52.
Qb5 {[%clk 0:01:48.1]} 52... Qa3+ {[%clk 0:00:05.7]} 53. Kb1 {[%clk 0:01:48.2]}
53... Qb3+ {[%clk 0:00:06.3]} 54. Ka1 {[%clk 0:01:48.3]} 54... Qc3+ {[%clk
0:00:07.2]} 55. Kb1 {[%clk 0:01:48.5]} 55... Qb3+ {[%clk 0:00:07.7]} 56. Ka1
{[%clk 0:01:49]} 1/2-1/2

[Event "Late-Titled-Tuesday-Blitz-March-05-2024"]
[Site "Chess.com"]
[Date "2024.03.05"]
[Round "11"]
[White "Mikhal867"]
[Black "OverallStranger"]
[Result "0-1"]
[WhiteElo "2482"]
[BlackElo "2396"]
[TimeControl "180+1"]
[EndTime "16:01:58 PST"]
[Termination "OverallStranger won by checkmate"]

1. c4 {[%clk 0:02:54.1]} 1... c5 {[%clk 0:02:59]} 2. Nf3 {[%clk 0:02:53.4]} 2...
g6 {[%clk 0:02:59.7]} 3. d4 {[%clk 0:02:53.1]} 3... cxd4 {[%clk 0:03:00.6]} 4.
Nxd4 {[%clk 0:02:53.4]} 4... Nf6 {[%clk 0:03:01.3]} 5. Nc3 {[%clk 0:02:53]} 5...
Bg7 {[%clk 0:03:01.4]} 6. e4 {[%clk 0:02:52.9]} 6... O-O {[%clk 0:03:02.1]} 7.
Be2 {[%clk 0:02:52.4]} 7... d6 {[%clk 0:03:02.3]} 8. Be3 {[%clk 0:02:50.5]} 8...
Bd7 {[%clk 0:03:02.6]} 9. O-O {[%clk 0:02:49.9]} 9... Nc6 {[%clk 0:03:03.2]} 10.
Nc2 {[%clk 0:02:49.6]} 10... Rc8 {[%clk 0:02:57.4]} 11. Rc1 {[%clk 0:02:45.4]}
11... a6 {[%clk 0:02:53.1]} 12. f3 {[%clk 0:02:44.2]} 12... Ne5 {[%clk 0:02:51]}
13. Na3 {[%clk 0:02:41.7]} 13... h5 {[%clk 0:02:48.4]} 14. Na4 {[%clk
0:02:33.6]} 14... Bxa4 {[%clk 0:02:45]} 15. Qxa4 {[%clk 0:02:33.1]} 15... Nfd7
{[%clk 0:02:32]} 16. b4 {[%clk 0:02:24.9]} 16... Nb6 {[%clk 0:02:21.1]} 17. Qb3
{[%clk 0:02:24.7]} 17... Nc6 {[%clk 0:02:18.8]} 18. Rfd1 {[%clk 0:02:21.4]}
18... h4 {[%clk 0:02:14.9]} 19. c5 {[%clk 0:02:17.4]} 19... Nd7 {[%clk
0:02:10.6]} 20. cxd6 {[%clk 0:02:15.8]} 20... exd6 {[%clk 0:02:11.5]} 21. Nc4
{[%clk 0:02:12.1]} 21... Qe7 {[%clk 0:01:53.7]} 22. Nxd6 {[%clk 0:02:09.6]}
22... Rb8 {[%clk 0:01:50.8]} 23. Nxb7 {[%clk 0:01:59.5]} 23... Rxb7 {[%clk
0:01:50]} 24. Rxc6 {[%clk 0:01:58.9]} 24... Rxb4 {[%clk 0:01:48.6]} 25. Qc2
{[%clk 0:01:43]} 25... Rb2 {[%clk 0:01:48.2]} 26. Qc4 {[%clk 0:01:36]} 26... Ne5
{[%clk 0:01:46.7]} 27. Qxa6 {[%clk 0:01:18.2]} 27... Nxc6 {[%clk 0:01:46.1]} 28.
Qxc6 {[%clk 0:01:18.3]} 28... Rxe2 {[%clk 0:01:44.4]} 29. Bc5 {[%clk 0:01:18.4]}
29... Qg5 {[%clk 0:01:41.1]} 30. Bf2 {[%clk 0:01:10.1]} 30... Rb8 {[%clk
0:01:19.4]} 31. g3 {[%clk 0:00:54.5]} 31... Rbb2 {[%clk 0:01:15.6]} 32. Rf1
{[%clk 0:00:39.7]} 32... Bd4 {[%clk 0:01:15.3]} 33. Qe8+ {[%clk 0:00:33.6]}
33... Kh7 {[%clk 0:01:05.2]} 34. Qxf7+ {[%clk 0:00:32.2]} 34... Bg7 {[%clk
0:01:05.3]} 35. f4 {[%clk 0:00:29]} 35... Qg4 {[%clk 0:00:57.6]} 36. e5 {[%clk
0:00:28.6]} 36... hxg3 {[%clk 0:00:56.7]} 37. hxg3 {[%clk 0:00:28.7]} 37... Rxf2
{[%clk 0:00:56]} 38. Rxf2 {[%clk 0:00:14]} 38... Qxg3+ {[%clk 0:00:56.2]} 39.
Kh1 {[%clk 0:00:14.3]} 39... Rb1+ {[%clk 0:00:56.4]} 40. Rf1 {[%clk 0:00:13.3]}
40... Rxf1# {[%clk 0:00:57.3]} 0-1

[Event "Late-Titled-Tuesday-Blitz-March-05-2024"]
[Site "Chess.com"]
[Date "2024.03.05"]
[Round "11"]
[White "Bryanl106"]
[Black "pr1105"]
[Result "1-0"]
[WhiteElo "2658"]
[BlackElo "2430"]
[TimeControl "180+1"]
[EndTime "16:02:01 PST"]
[Termination "Bryanl106 won by resignation"]

1. e4 {[%clk 0:03:00.9]} 1... e5 {[%clk 0:02:56.4]} 2. Nf3 {[%clk 0:03:00.9]}
2... Nc6 {[%clk 0:02:56.1]} 3. Nc3 {[%clk 0:03:01.5]} 3... Nf6 {[%clk
0:02:56.2]} 4. a3 {[%clk 0:03:01.6]} 4... d5 {[%clk 0:02:54.8]} 5. Bb5 {[%clk
0:03:01.2]} 5... dxe4 {[%clk 0:02:54.6]} 6. Nxe5 {[%clk 0:03:00.6]} 6... Qd6
{[%clk 0:02:39.9]} 7. d4 {[%clk 0:03:00]} 7... a6 {[%clk 0:02:30.2]} 8. Ba4
{[%clk 0:02:54.4]} 8... Be7 {[%clk 0:02:12.5]} 9. Bf4 {[%clk 0:02:52.8]} 9...
O-O {[%clk 0:01:21.4]} 10. Nxc6 {[%clk 0:02:50.7]} 10... Qxf4 {[%clk 0:01:19.2]}
11. Nxe7+ {[%clk 0:02:50.5]} 11... Kh8 {[%clk 0:01:20.1]} 12. Nxc8 {[%clk
0:02:50.5]} 12... Raxc8 {[%clk 0:01:20.8]} 13. O-O {[%clk 0:02:49.4]} 13... Ng4
{[%clk 0:01:18.4]} 14. g3 {[%clk 0:02:49.7]} 14... Qf5 {[%clk 0:01:18.9]} 15. h3
{[%clk 0:02:42.1]} 15... Nf6 {[%clk 0:01:18.2]} 16. Kg2 {[%clk 0:02:42]} 16...
Rcd8 {[%clk 0:01:14.5]} 17. Bb3 {[%clk 0:02:40.2]} 17... c5 {[%clk 0:01:13.2]}
18. d5 {[%clk 0:02:39.6]} 18... b5 {[%clk 0:01:13.9]} 19. a4 {[%clk 0:02:35.3]}
19... c4 {[%clk 0:01:14.1]} 20. Ba2 {[%clk 0:02:33.7]} 20... b4 {[%clk
0:01:13.5]} 21. Ne2 {[%clk 0:02:31]} 21... Nxd5 {[%clk 0:01:11.8]} 22. Qe1
{[%clk 0:02:28.3]} 22... b3 {[%clk 0:00:38.4]} 23. cxb3 {[%clk 0:02:24.4]} 23...
cxb3 {[%clk 0:00:39.3]} 24. Bxb3 {[%clk 0:02:25]} 24... Qf3+ {[%clk 0:00:39.3]}
25. Kg1 {[%clk 0:02:21.1]} 25... Qxb3 {[%clk 0:00:39.9]} 26. Qb1 {[%clk
0:02:07.6]} 26... Qf3 {[%clk 0:00:32.1]} 27. Nd4 {[%clk 0:02:03.5]} 27... Qh5
{[%clk 0:00:20.6]} 28. Qxe4 {[%clk 0:01:57.6]} 28... Qxh3 {[%clk 0:00:21]} 29.
Qh4 {[%clk 0:01:48.6]} 29... Qxh4 {[%clk 0:00:16.5]} 30. gxh4 {[%clk 0:01:49.5]}
30... Nf4 {[%clk 0:00:17.1]} 31. Nf5 {[%clk 0:01:48]} 31... g6 {[%clk
0:00:16.6]} 32. Ne3 {[%clk 0:01:47.4]} 32... Rd2 {[%clk 0:00:15.8]} 33. b4
{[%clk 0:01:45.8]} 33... Rb2 {[%clk 0:00:15.8]} 34. Rab1 {[%clk 0:01:44.9]}
34... Ra2 {[%clk 0:00:13.7]} 35. b5 {[%clk 0:01:44.3]} 35... Rxa4 {[%clk
0:00:13.5]} 36. b6 {[%clk 0:01:44.5]} 36... Ne2+ {[%clk 0:00:13]} 37. Kg2 {[%clk
0:01:44.5]} 37... Nf4+ {[%clk 0:00:10.9]} 38. Kf3 {[%clk 0:01:44.2]} 38... Ne6
{[%clk 0:00:10.6]} 39. b7 {[%clk 0:01:43.6]} 39... Rb8 {[%clk 0:00:11.1]} 40.
Rfc1 {[%clk 0:01:43.6]} 40... Rd4 {[%clk 0:00:08.8]} 41. Rc8+ {[%clk 0:01:43.2]}
41... Rd8 {[%clk 0:00:09.7]} 42. Rxb8 {[%clk 0:01:19.6]} 42... Rxb8 {[%clk
0:00:10.6]} 43. Nc4 {[%clk 0:01:19.7]} 43... Nd8 {[%clk 0:00:11.3]} 44. Na5
{[%clk 0:01:18.7]} 44... Kg8 {[%clk 0:00:11.7]} 45. Ke4 {[%clk 0:01:19.2]} 45...
Kf8 {[%clk 0:00:12.3]} 46. Kd5 {[%clk 0:01:19.9]} 46... Ke7 {[%clk 0:00:13]} 47.
Kc5 {[%clk 0:01:20.6]} 47... Kd7 {[%clk 0:00:13]} 48. Kb6 {[%clk 0:01:20.9]}
48... Nxb7 {[%clk 0:00:10.8]} 49. Nxb7 {[%clk 0:01:21.8]} 49... Ke6 {[%clk
0:00:10.6]} 50. Kxa6 {[%clk 0:01:20.7]} 50... Kf5 {[%clk 0:00:10.5]} 51. Nd6+
{[%clk 0:01:21.2]} 1-0